Cogmind - Beta 14 @@@ ROGUE MODE // 2025.03.24 @ 14:28:08 Player: Chair Result: Destroyed by H-88 Terminator with KE Penetrator Performance ------------- Evolutions (9) 4500 Regions Visited (15) 3000 Robots Destroyed (75) 375 Value Destroyed (2085) 2085 Prototype IDs (216) 4320 Alien Tech Used (0) 0 Bonus (5336) 5336 TOTAL SCORE: 19616 Bonus ------- High Alert Combat Kills 36 Entered DSFs 500 Met Data Miner 300 Used Data Conduit 3000 Pursued by Intercept 1500 Cogmind --------- Core Integrity 0/1600 Matter 272/300 Energy 100/100 System Corruption 6% Temperature Cool (0) Movement Core (50) Location -1/Access Parts ------- > --- POWER (2) -------- (None) > --- PROPULSION (9) --- (None) > --- UTILITY (12) ----- (None) > --- WEAPON (2) ------- (None) > --- INVENTORY (5) ---- Light Quantum Reactor Gyrokinetic Inverter Hacking Suite Advanced Datajack Peak State ------------ > --- POWER ------------ Light Quantum Reactor Light Quantum Reactor > --- PROPULSION ------- Nuclear Pulse Array Nuclear Pulse Array Nuclear Pulse Array Cooled Impulse Thruster Impulse Thruster Array > --- UTILITY ---------- Medium Storage Unit Enhanced Optical Array Advanced Sensor Array Advanced Signal Interpreter Improved Transmission Jammer Advanced ECM Suite Reaction Control System Cloaking Device Layered Light Armor Plating Layered Light Armor Plating Hacking Suite Hacking Suite > --- WEAPON ----------- Advanced Datajack Thunder Hammer > --- INVENTORY -------- Light Quantum Reactor Light Quantum Reactor Light Quantum Reactor Gyrokinetic Inverter Seismic Detector Advanced Trap Extractor Advanced Plasma Cannon Neutron Missile Launcher [Rating: 146] Favorites ----------- Power Improved Deuterium Engine Engine Improved Deuterium Engine Power Core Light Fission Core Reactor Light Quantum Reactor Propulsion Nuclear Pulse Array Treads Medium Treads Leg Carbon-fiber Leg Wheel Wheel Hover Unit Gyrokinetic Inverter Flight Unit Nuclear Pulse Array Utility Hacking Suite Device Seismic Detector Storage High-capacity Storage Unit Processor Improved Signal Interpreter Hackware Hacking Suite Protection Improved Medium Armor Plating Weapon Heavy Particle Gun Energy Gun Heavy Particle Gun Energy Cannon Ion Cannon Ballistic Gun Enhanced Autogun Launcher Proton Missile Launcher Impact Weapon Thunder Hammer Slashing Weapon Scythe Piercing Weapon Lance Special Melee Weapon Advanced Datajack Build | -11 -10 -9 -8 -7 -7 -7 -7 -6 -6 -5 -4 -3 -3 -2 -1 ------- Run | Yrd Mat Mat Mat Fac Low Low Dat Pro Fac Fac Fac Res DSF Res Acc Slots Evolved 18 | . . 2 2 2 . . . . 2 2 2 2 . 2 2 Power 1 | . . . . . . . . . . . 1 . . . . Propulsion 7 | . . 1 1 1 . . . . . 1 1 1 . . 1 Utility 10 | . . 1 1 1 . . . . 2 1 . 1 . 2 1 Weapon . | . . . . . . . . . . . . . . . . Parts Attached 193 | 8 . 3 31 25 19 17 . 5 15 14 24 6 2 17 7 Power 20 | 1 . . 3 1 . 1 . 1 4 . 3 2 . 3 1 Engine 9 | 1 . . 3 1 . 1 . . 1 . 2 . . . . Core 4 | . . . . . . . . 1 3 . . . . . . Reactor 7 | . . . . . . . . . . . 1 2 . 3 1 Propulsion 38 | 2 . 1 6 3 4 6 . . 3 4 4 1 . 3 1 Treads 4 | . . . . 1 2 . . . . . 1 . . . . Leg 1 | . . . . . 1 . . . . . . . . . . Wheel 13 | 2 . 1 6 2 1 1 . . . . . . . . . Hover 1 | . . . . . . . . . . . . . . 1 . Flight 19 | . . . . . . 5 . . 3 4 3 1 . 2 1 Utility 91 | 2 . 2 7 8 11 8 . 3 7 9 14 3 2 11 4 Device 51 | 1 . 1 3 3 5 4 . 1 3 7 12 2 . 7 2 Storage 5 | 1 . 1 1 . . 1 . . . 1 . . . . . Processor 7 | . . . . 3 . . . . 2 . . . . 1 1 Hackware 4 | . . . . . . . . . 2 . 1 1 . . . Protection 24 | . . . 3 2 6 3 . 2 . 1 1 . 2 3 1 Artifact . | . . . . . . . . . . . . . . . . Weapon 44 | 3 . . 15 13 4 2 . 1 1 1 3 . . . 1 Energy Gun 12 | 1 . . 3 7 1 . . . . . . . . . . Energy Cannon 5 | . . . 5 . . . . . . . . . . . . Ballistic Gun 7 | 2 . . 3 1 1 . . . . . . . . . . Ballistic Cannon . | . . . . . . . . . . . . . . . . Launcher 8 | . . . 4 . 2 . . 1 . . . . . . 1 Special Weapon . | . . . . . . . . . . . . . . . . Impact Weapon 1 | . . . . . . . . . . . 1 . . . . Slashing Weapon 7 | . . . . 4 . 2 . . 1 . . . . . . Piercing Weapon 2 | . . . . . . . . . . 1 1 . . . . Special Melee Weapon 2 | . . . . 1 . . . . . . 1 . . . . Unidentified Prototypes 3 | . . . 2 1 . . . . . . . . . . . Parts Lost 30 | . . . 3 1 4 10 . 1 . 1 1 . 1 2 6 Power 3 | . . . . . . . . . . . 1 . . . 2 Propulsion 12 | . . . 2 . 4 5 . . . . . . 1 . . Utility 13 | . . . . 1 . 4 . 1 . 1 . . . 2 4 Weapon 2 | . . . 1 . . 1 . . . . . . . . . Highest Loss Streak 9 | . . . 3 1 2 9 . 1 . 1 1 . 1 1 5 To Critical Strikes . | . . . . . . . . . . . . . . . . Average Slot Usage (%) 87 | . 100 100 97 98 80 90 100 98 99 87 79 79 73 78 43 Engine 5 | . 14 11 9 7 7 6 7 6 . . 4 3 . . . Core 1 | . . . . . . . . . 5 5 1 . . . . Treads 5 | . . . . 6 9 19 . . . . 4 . . . . Leg 1 | . . . . . 2 6 . . . . . . . . . Wheel 10 | . 28 33 34 30 6 1 . . . . . . . . . Flight 9 | . . . . . . 5 38 38 33 22 15 19 18 16 9 Device 14 | . 14 22 19 12 12 9 15 15 14 20 14 17 9 17 10 Storage 6 | . 14 11 9 7 7 6 7 7 6 5 5 4 4 4 2 Processor 8 | . . . . 9 15 13 7 7 11 5 5 4 4 7 4 Hackware 4 | . . . . . . . . . 13 11 15 15 14 12 4 Protection 3 | . . . 6 5 2 3 7 5 . 2 . . 8 2 2 Energy Gun 4 | . 14 11 6 11 5 6 . . . . . . . . . Ballistic Gun 2 | . 14 11 2 2 3 6 . . . . . . . . . Launcher 1 | . . . 1 . 4 . . 2 . . . . . . . Slashing Weapon 2 | . . . . . . . 15 12 12 10 . . . . . Peak Build Rating 146 | 7 7 11 29 40 41 45 42 42 59 79 102 116 119 129 146 Average Rating 52 | 4 7 10 22 37 36 41 42 41 56 76 92 108 105 122 77 On Entrance 51 | . 7 7 11 29 37 41 42 42 42 58 79 100 116 85 126 Naked Turns 57 | . . . . . . . . . . . . . . . 57 Heaviest Build 71 | 15 15 31 69 68 71 67 24 29 28 32 41 50 47 55 60 Greatest Support 76 | 26 26 36 52 52 76 76 29 29 30 39 39 52 52 55 62 Greatest Overweight (x) 6 | 2 . . 2 1 6 6 . . . . 1 . . . 2 Average Overweight (x) . | . . . . 1 2 . . . . . . . . . . Largest Inventory Capacity 20 | 8 8 15 20 20 20 20 10 10 10 10 10 10 10 10 10 Average Capacity 14 | 6 8 12 16 20 20 18 10 10 10 10 10 10 10 10 7 Most Carried 20 | 4 6 6 20 20 20 20 8 9 10 10 10 10 10 10 10 Average Carried 14 | 1 5 4 14 19 19 18 7 7 9 9 9 7 9 7 7 Final Capacity 20 | 8 8 15 20 20 20 10 10 10 10 10 10 10 10 10 5 Final Carried 20 | 4 6 5 20 20 20 8 7 9 10 10 10 9 10 8 4 Class Distribution -------------------- 27% | Scavenger-Skirmisher 17% | Scavenger-Mutant 15% | Hacker-Sprinter 11% | Mutant 10% | Hacker-Mutant 7% | Hacker-Ninja Dominant Class ---------------- Mutant | -10/Materials Mutant | -9/Materials Scavenger-Mutant | -8/Materials Scavenger-Mutant | -7/Factory Scavenger-Skirmisher | -7/Lower Caves Scavenger-Skirmisher | -7/Lower Caves Scout | -7/Data Miner Scout | -6/Proximity Caves Hacker-Sprinter | -6/Factory Hacker-Sprinter | -5/Factory Hacker-Mutant | -4/Factory Hacker-Sprinter | -3/Research Hacker-Sprinter | -3/DSF Hacker-Ninja | -2/Research Mutant | -1/Access Resources | -11 -10 -9 -8 -7 -7 -7 -7 -6 -6 -5 -4 -3 -3 -2 -1 ----------- Run | Yrd Mat Mat Mat Fac Low Low Dat Pro Fac Fac Fac Res DSF Res Acc Matter Collected 2606 | 292 . 12 493 235 435 205 . . 232 125 126 127 9 165 150 Remotely . | . . . . . . . . . . . . . . . . Salvage Created 3853 | 97 . 22 1010 358 838 257 . . 320 209 269 127 . 199 147 Parts 175 | 12 . 2 62 25 24 13 . . 10 12 7 4 . 3 1 Haulers Intercepted 6 | . . . 2 1 . . . . . . 1 . . 1 1 Recyclers Shooed 2 | . . . . 1 . . . . . . . 1 . . . Parts Field Recycled . | . . . . . . . . . . . . . . . . Retrieved Matter . | . . . . . . . . . . . . . . . . Parts Self-Destructed 21 | . . . . . 9 12 . . . . . . . . . Prevented . | . . . . . . . . . . . . . . . . Kills | -11 -10 -9 -8 -7 -7 -7 -7 -6 -6 -5 -4 -3 -3 -2 -1 ------- Run | Yrd Mat Mat Mat Fac Low Low Dat Pro Fac Fac Fac Res DSF Res Acc Combat Hostiles Destroyed 34 | . . 2 13 3 12 3 . . . . . . . . 1 Guns 15 | . . 2 3 3 4 3 . . . . . . . . . Cannons 2 | . . . 2 . . . . . . . . . . . . AOE 16 | . . . 7 . 8 . . . . . . . . . 1 Classes Destroyed 17 | 2 . 1 6 2 4 2 . . . . . . . . . Worker 2 | . . . . . . . . . . . 1 1 . . . Builder 3 | . . . 1 2 . . . . . . . . . . . Tunneler 7 | 2 . . 2 2 . . . . 1 . . . . . . Hauler 6 | . . . 2 1 . . . . . . 1 . . 1 1 Recycler 9 | 1 . . 3 . . . . . 2 1 1 1 . . . Minesweeper 1 | . . . . . . 1 . . . . . . . . . Mechanic 2 | . . . . 2 . . . . . . . . . . . Operator 4 | . . . 3 . . . . . . . . . . 1 . Watcher 7 | . . . 1 . . . . . 1 2 . . . 2 1 Swarmer 8 | . . 2 3 . 3 . . . . . . . . . . Grunt 9 | . . . 5 1 3 . . . . . . . . . . Sentry 7 | . . . 5 1 . 1 . . . . . . . . . Hunter 1 | . . . . 1 . . . . . . . . . . . Programmer 2 | . . . . . . 2 . . . . . . . . . Tracker 1 | . . . . . . . . . . . . . . . 1 Decomposer 6 | . . . . . 2 4 . . . . . . . . . Samaritan 1 | . . . . . 1 . . . . . . . . . . Thug 4 | . . . . . 4 . . . . . . . . . . Butcher 1 | . . . . . 1 . . . . . . . . . . Mutant 1 | . . . . . 1 . . . . . . . . . . Best Kill Streak 11 | 3 . 2 11 1 5 1 . . 2 1 1 2 . 2 1 Combat Bots Only 6 | . . 2 6 1 5 1 . . . . . . . . 1 Max Kills in Single Turn 2 | 1 . 1 2 1 2 1 . . 1 1 1 1 . 1 1 Gunslinging . | . . . . . . . . . . . . . . . . Exploded 2 | . . . 2 . 2 . . . . . . . . . 1 Melee . | . . . . . . . . . . . . . . . . Uniques/NPCs Destroyed . | . . . . . . . . . . . . . . . . Combat | -11 -10 -9 -8 -7 -7 -7 -7 -6 -6 -5 -4 -3 -3 -2 -1 -------- Run | Yrd Mat Mat Mat Fac Low Low Dat Pro Fac Fac Fac Res DSF Res Acc Hostile Shots Fired 515 | . . 17 54 35 31 120 8 20 8 7 13 . 5 28 169 Missed 179 | . . 6 13 11 7 42 7 14 4 3 7 . 1 18 46 Damage Taken 5916 | . . 103 572 251 409 1034 50 114 66 62 171 . 270 241 2573 Core 2072 | . . 25 87 65 30 57 50 31 18 . 71 . . 23 1615 Absorbed by Shields 19 | . . . . . . . . . . . . . 19 . . Redirected to Shielding 102 | . . . . . . 69 . 33 . . . . . . . Regen/Repaired (Parts) 154 | . . . 16 33 . . . . . . . . . 105 . Core Remaining (%) 93 | 100 100 93 84 . . . . 66 97 100 93 . 100 98 . Volleys Fired 160 | 4 . 4 55 30 42 21 . 1 . . . . . . 3 Largest 2 | 2 . 2 2 2 2 2 . 1 . . . . . . 1 Hottest 110 | 60 . 60 110 110 80 80 . 39 . . . . . . 49 Shots Fired 283 | 8 . 8 85 59 76 43 . 1 . . . . . . 3 Gun 219 | 8 . 8 37 59 64 43 . . . . . . . . . Cannon 33 | . . . 33 . . . . . . . . . . . . Launcher 31 | . . . 15 . 12 . . 1 . . . . . . 3 Special . | . . . . . . . . . . . . . . . . Kinetic 86 | 4 . 4 17 9 31 21 . . . . . . . . . Thermal 148 | . . . 43 50 33 22 . . . . . . . . . Explosive 15 | . . . 5 . 7 . . . . . . . . . 3 Electromagnetic 34 | 4 . 4 20 . 5 . . 1 . . . . . . . Robot Hit Streak 12 | 4 . 3 9 6 12 9 . . . . . . . . 2 Robot Miss Streak 5 | 1 . 2 5 5 5 2 . 1 . . . . . . 2 Penetration Max . | . . . . . . . . . . . . . . . . Secondary Targets 2 | . . 1 . . . 1 . . . . . . . . . Max Gunslinging Chain 1 | . . 1 . . . 1 . . . . . . . . . Shots Hit Robots 196 | 5 . 4 47 32 49 29 1 . 7 4 4 2 . 4 8 Core Hits 119 | 4 . 2 34 14 35 13 . . 4 3 2 1 . . 7 Critical Kills . | . . . . . . . . . . . . . . . . Critical Parts Destroyed 1 | . . . . . . . . . . . 1 . . . . Critical Strikes 9 | . . . 1 4 2 1 . . . . 1 . . . . Burn 8 | . . . 1 4 2 1 . . . . . . . . . Smash 1 | . . . . . . . . . . . 1 . . . . Melee Attacks 159 | . . . . 6 . 3 1 1 35 43 26 12 . 22 10 Impact 51 | . . . . . . . . . . . 7 12 . 22 10 Slashing 86 | . . . . 6 . 3 1 1 35 39 1 . . . . Piercing 22 | . . . . . . . . . . 4 18 . . . . Sneak Attacks 12 | . . . . . . . 1 . 3 1 3 2 . 1 1 Combat Hostiles . | . . . . . . . . . . . . . . . . Follow-up Attacks . | . . . . . . . . . . . . . . . . Damage Inflicted 6899 | 64 . 49 1637 610 1486 549 63 . 470 236 253 159 . 314 1009 Guns 2400 | 64 . 49 397 610 731 549 . . . . . . . . . Cannons 383 | . . . 383 . . . . . . . . . . . . Explosions 2059 | . . . 857 . 755 . . . . . . . . . 447 Melee 2030 | . . . . . . . 63 . 470 236 253 159 . 314 535 Ramming 27 | . . . . . . . . . . . . . . . 27 Kinetic 750 | 23 . 39 174 53 239 222 . . . . . . . . . Thermal 1959 | . . . 531 557 544 327 . . . . . . . . . Explosive 1304 | . . . 403 . 454 . . . . . . . . . 447 Electromagnetic 829 | 41 . 10 529 . 249 . . . . . . . . . . Impact 1071 | . . . . . . . . . . . 63 159 . 314 535 Slashing 769 | . . . . . . . 63 . 470 236 . . . . . Piercing 190 | . . . . . . . . . . . 190 . . . . Highest Corruption 6 | . . . 1 . . 3 3 3 . . . . . 1 6 Average Corruption 1 | . . . 1 . . 1 3 3 . . . . . 1 2 Corruption Purged . | . . . . . . . . . . . . . . . . Corruption Blocked . | . . . . . . . . . . . . . . . . Effects 24 | . . . 1 . . 14 1 2 . . . . . 6 . Message Errors 6 | . . . . . . 4 . 1 . . . . . 1 . Matter Fused 4 | . . . . . . 3 1 . . . . . . . . Heat Flow Errors 6 | . . . . . . 4 . . . . . . . 2 . Energy Discharges 3 | . . . . . . 1 . 1 . . . . . 1 . Data Loss (minor) 3 | . . . . . . 1 . . . . . . . 2 . Misfires 1 | . . . . . . 1 . . . . . . . . . Alerts 1 | . . . 1 . . . . . . . . . . . . Overload Shots . | . . . . . . . . . . . . . . . . Overflow Damage 411 | . . . 30 . 35 . . . 47 . 63 11 . 120 105 Projectiles 16 | . . . 16 . . . . . . . . . . . . Explosions 74 | . . . 14 . 35 . . . . . . . . . 25 Melee 321 | . . . . . . . . . 47 . 63 11 . 120 80 Knockbacks 2 | . . . . . . . . . . . . 1 . 1 . Impact 2 | . . . . . . . . . . . . 1 . 1 . Kinetic . | . . . . . . . . . . . . . . . . Secondary . | . . . . . . . . . . . . . . . . Self-Inflicted Damage 348 | . . . 83 . 32 . . 14 . . . . . . 219 Shots 8 | . . . 3 . 1 . . 1 . . . . . . 3 Rammed 4 | . . . . . . . . . . . . . . . 4 Targets Rammed 4 | . . . . . . . . . . . . . . . 4 Kicked . | . . . . . . . . . . . . . . . . Crushed . | . . . . . . . . . . . . . . . . Highest Temperature 276 | . . 6 210 252 272 276 3 12 8 10 . . . 253 10 Average Temperature 48 | . . 6 43 62 64 60 1 2 1 5 . . . 91 7 Received Heat Transfer 774 | . . 21 144 126 216 138 . 9 18 9 30 . . 45 18 Siege Activations . | . . . . . . . . . . . . . . . . Robots Corrupted 5 | . . . 1 . . . . . . . . 1 . 3 . Combat Hostiles 1 | . . . 1 . . . . . . . . . . . . Parts Fried 14 | . . . 2 . 1 . . . . . . 3 . 8 . Impact Corruptions 9 | . . . . . . . . . . . 2 1 . 5 1 Robots Melted . | . . . . . . . . . . . . . . . . Combat Hostiles . | . . . . . . . . . . . . . . . . Parts Melted 9 | . . . 3 3 1 2 . . . . . . . . . Heat Transferred 4268 | . . . 1036 1369 1160 703 . . . . . . . . . Parts Sabotaged . | . . . . . . . . . . . . . . . . Parts Stolen 1 | . . . . . 1 . . . . . . . . . . Parts Stripped . | . . . . . . . . . . . . . . . . Power Chain Reactions 1 | . . . . . 1 . . . . . . . . . . Alert | -11 -10 -9 -8 -7 -7 -7 -7 -6 -6 -5 -4 -3 -3 -2 -1 ------- Run | Yrd Mat Mat Mat Fac Low Low Dat Pro Fac Fac Fac Res DSF Res Acc Peak Influence 603 | 15 39 97 441 312 . . . . 246 155 110 70 52 237 603 Initial 162 | . 9 16 40 162 . . . . 56 53 1 39 52 23 151 Average 134 | 4 16 30 158 196 . . . . 116 96 37 56 50 110 472 Maximum Alert Level 2 | . . . 2 1 . . . . 1 . . . . 1 2 Low Security (%) 78 | 100 100 100 70 52 . . . . 88 100 100 100 100 96 4 Level 1 16 | . . . 28 47 . . . . 11 . . . . 3 7 Level 2 4 | . . . 1 . . . . . . . . . . . 87 Level 3 . | . . . . . . . . . . . . . . . . Level 4 . | . . . . . . . . . . . . . . . . Level 5 . | . . . . . . . . . . . . . . . . High Security . | . . . . . . . . . . . . . . . . Max Security . | . . . . . . . . . . . . . . . . Squads Dispatched 25 | . 1 . 2 3 . . . . 3 3 3 1 . 4 5 Investigation 11 | . 1 . . 2 . . . . 3 1 . . . 3 1 Extermination 3 | . . . . . . . . . . 1 . 1 . 1 . Reinforcement 6 | . . . 2 1 . . . . . . 2 . . . 1 Assault . | . . . . . . . . . . . . . . . . Garrison . | . . . . . . . . . . . . . . . . Intercept 5 | . . . . . . . . . . 1 1 . . . 3 Searches Triggered . | . . . . . . . . . . . . . . . . Construction Impeded . | . . . . . . . . . . . . . . . . Haulers Reinforced 1 | . . . . . . . . . . . . . . . 1 Active Scanning Responses . | . . . . . . . . . . . . . . . . Cargo Convoy Interrupts . | . . . . . . . . . . . . . . . . Stealth | -11 -10 -9 -8 -7 -7 -7 -7 -6 -6 -5 -4 -3 -3 -2 -1 --------- Run | Yrd Mat Mat Mat Fac Low Low Dat Pro Fac Fac Fac Res DSF Res Acc Distress Signals 13 | . 1 1 2 1 . . . . 4 . 3 . . . 1 Communications Jammed . | . . . . . . . . . . . . . . . . Distress Signals . | . . . . . . . . . . . . . . . . Times Spotted 127 | . 1 7 18 9 9 5 4 7 13 5 13 . 1 22 13 Peak Tracking Total 12 | . 3 6 4 2 4 2 4 7 6 3 3 1 1 12 9 Tactical Retreats 23 | . . 1 1 . . 1 . 1 5 2 6 . . 3 3 Traps | -11 -10 -9 -8 -7 -7 -7 -7 -6 -6 -5 -4 -3 -3 -2 -1 ------- Run | Yrd Mat Mat Mat Fac Low Low Dat Pro Fac Fac Fac Res DSF Res Acc Traps Triggered 7 | . . . 3 . . . . . . 2 . . 2 . . Indirectly 2 | . . . 2 . . . . . . . . . . . . Trap Hack Attempts 83 | . . . . 53 . . . . . . 30 . . . . Triggered . | . . . . . . . . . . . . . . . . Disarmed 1 | . . . . . . . . . . . 1 . . . . Reprogrammed 6 | . . . . 3 . . . . . . 3 . . . . Reused 2 | . . . . 1 . . . . . . . . . . 1 Traps Extracted 3 | . . . . . . . . . . . 3 . . . . Installed 5 | . . . . . . 1 1 . . . . . . . 3 Triggered 2 | . . . . 1 . . . . . . . . . . 1 Most Traps Carried 3 | . . . . . . 1 1 . . . 3 3 3 3 3 Machines | -11 -10 -9 -8 -7 -7 -7 -7 -6 -6 -5 -4 -3 -3 -2 -1 ---------- Run | Yrd Mat Mat Mat Fac Low Low Dat Pro Fac Fac Fac Res DSF Res Acc Machines Disabled 8 | . . 1 6 . . . . . . . . . . 1 . Max in Single Turn 1 | . . 1 1 . . . . . . . . . . 1 . Garrison Access 7 | . . . . 1 . . . . 2 1 1 . . 1 1 Machines Repaired . | . . . . . . . . . . . . . . . . Machines Dismantled . | . . . . . . . . . . . . . . . . Machines Sabotaged . | . . . . . . . . . . . . . . . . Overloaded Fab Kills . | . . . . . . . . . . . . . . . . Hacking | -11 -10 -9 -8 -7 -7 -7 -7 -6 -6 -5 -4 -3 -3 -2 -1 --------- Run | Yrd Mat Mat Mat Fac Low Low Dat Pro Fac Fac Fac Res DSF Res Acc Machines Accessed 62 | . 1 3 5 5 . . 3 . 16 8 11 2 . 7 1 Terminals 36 | . 1 2 3 3 . . . . 9 6 8 1 . 3 . Fabricators 6 | . . . . . . . . . 3 1 . 1 . 1 . Repair Stations 4 | . . . 1 1 . . . . . . 1 . . 1 . Recycling Units 3 | . . . 1 . . . . . 1 . 1 . . . . Scanalyzers 2 | . . 1 . . . . . . 1 . . . . . . Garrison Access 8 | . . . . 1 . . . . 2 1 1 . . 2 1 Total Hacks 169 | . 2 9 14 13 . . 23 . 37 21 29 3 . 17 1 Successful 100 | . . 1 5 6 . . 23 . 23 11 20 2 . 8 1 Failed 69 | . 2 8 9 7 . . . . 14 10 9 1 . 9 . Catastrophic 12 | . . 1 1 3 . . . . 1 2 1 . . 3 . Database Lockouts . | . . . . . . . . . . . . . . . . Manual 72 | . 1 8 12 2 . . . . 20 9 13 1 . 5 1 Terminals 96 | . 2 8 9 8 . . . . 24 17 20 1 . 7 . Fabricators 12 | . . . . . . . . . 5 3 . 2 . 2 . Repair Stations 13 | . . . 2 4 . . . . . . 3 . . 4 . Recycling Units 9 | . . . 3 . . . . . 2 . 4 . . . . Scanalyzers 2 | . . 1 . . . . . . 1 . . . . . . Garrison Access 14 | . . . . 1 . . . . 5 1 2 . . 4 1 Terminal Hacks 51 | . . . . 1 . . 23 . 6 7 10 1 . 3 . Record 8 | . . . . . . . 6 . 1 . . . . 1 . Part Schematic 12 | . . . . . . . 8 . 1 1 2 . . . . Robot Schematic 6 | . . . . . . . 6 . . . . . . . . Prototype ID Bank 3 | . . . . . . . 3 . . . . . . . . Open DSF 1 | . . . . . . . . . . . . 1 . . . Level Access Points 3 | . . . . . . . . . . 1 1 . . 1 . Branch Access Points 2 | . . . . . . . . . . 1 1 . . . . Alert Level 1 | . . . . . . . . . . . 1 . . . . Unreport Threat 6 | . . . . . . . . . 1 2 2 . . 1 . Locate Traps 5 | . . . . 1 . . . . 2 1 1 . . . . Dispatch Records 1 | . . . . . . . . . 1 . . . . . . Hauler Manifests 1 | . . . . . . . . . . . 1 . . . . Registered Components 1 | . . . . . . . . . . 1 . . . . . Registered Prototypes 1 | . . . . . . . . . . . 1 . . . . Fabricator Hacks 4 | . . . . . . . . . 3 . . 1 . . . Load Schematic 2 | . . . . . . . . . 1 . . 1 . . . Build 2 | . . . . . . . . . 2 . . . . . . Repair Station Hacks 11 | . . . 2 4 . . . . . . 1 . . 4 . Scan Component 5 | . . . 1 2 . . . . . . . . . 2 . Repair 5 | . . . 1 2 . . . . . . . . . 2 . Refit 1 | . . . . . . . . . . . 1 . . . . Recycling Unit Hacks 3 | . . . . . . . . . 1 . 2 . . . . Retrieve Components 3 | . . . . . . . . . 1 . 2 . . . . Scanalyzer . | . . . . . . . . . . . . . . . . Garrison Access Hacks 5 | . . . . . . . . . 2 1 1 . . 1 . Seal Access 5 | . . . . . . . . . 2 1 1 . . 1 . Unauthorized Hacks 26 | . . 1 3 1 . . . . 11 3 6 . . . 1 Terminals 19 | . . 1 3 . . . . . 9 2 4 . . . . Assimilate 5 | . . 1 . . . . . . 2 . 2 . . . . Botnet 12 | . . . 3 . . . . . 5 2 2 . . . . Disrupt 1 | . . . . . . . . . 1 . . . . . . Operators 1 | . . . . . . . . . 1 . . . . . . Fabricators 2 | . . . . . . . . . 1 1 . . . . . Fabnet 2 | . . . . . . . . . 1 1 . . . . . Repair Stations . | . . . . . . . . . . . . . . . . Recycling Units 3 | . . . . . . . . . 1 . 2 . . . . Reject 2 | . . . . . . . . . 1 . 1 . . . . Recyclers 1 | . . . . . . . . . . . 1 . . . . Scanalyzers . | . . . . . . . . . . . . . . . . Garrison Access 2 | . . . . 1 . . . . . . . . . . 1 Jam 2 | . . . . 1 . . . . . . . . . . 1 Data Cores Recovered 1 | . . . 1 . . . . . . . . . . . . Used . | . . . . . . . . . . . . . . . . Hacking Detections 49 | . 1 3 4 4 . . . . 15 7 8 1 . 6 . Full Trace Events 9 | . 1 1 . 1 . . . . 3 . . . . 3 . Feedback Events 2 | . . . . . . . . . . . . . . 2 . Corruption 1 | . . . . . . . . . . . . . . 1 . Hackware Fried 1 | . . . . . . . . . . . . . . 1 . Feedback Blocked . | . . . . . . . . . . . . . . . . Robot Schematics Acquired 6 | . . . . . . . 6 . . . . . . . . Robots Built 1 | . . . . . . . . . 1 . . . . . . Authchips . | . . . . . . . . . . . . . . . . Time 58 | . . . . . . . . . 58 . . . . . . Total Robot Build Rating 3 | . . . . . . . . . 3 . . . . . . Part Schematics Acquired 12 | . . . . . . . 8 . 1 1 2 . . . . Parts Built 1 | . . . . . . . . . 1 . . . . . . Authchips . | . . . . . . . . . . . . . . . . Time 152 | . . . . . . . . . 152 . . . . . . Total Part Build Rating 5 | . . . . . . . . . 5 . . . . . . Parts Repaired 5 | . . . 1 2 . . . . . . . . . 2 . Time 241 | . . . 38 97 . . . . . . . . . 106 . Parts Recycled . | . . . . . . . . . . . . . . . . Recycled Matter . | . . . . . . . . . . . . . . . . Retrieved Matter . | . . . . . . . . . . . . . . . . Retrieved Components 1 | . . . . . . . . . 1 . . . . . . Parts Scanalyzed . | . . . . . . . . . . . . . . . . Part Schematics Acquired . | . . . . . . . . . . . . . . . . Parts Damaged . | . . . . . . . . . . . . . . . . Bothacking | -11 -10 -9 -8 -7 -7 -7 -7 -6 -6 -5 -4 -3 -3 -2 -1 ------------ Run | Yrd Mat Mat Mat Fac Low Low Dat Pro Fac Fac Fac Res DSF Res Acc Used RIF Installer . | . . . . . . . . . . . . . . . . Robots Hacked . | . . . . . . . . . . . . . . . . Non-combat . | . . . . . . . . . . . . . . . . Combat . | . . . . . . . . . . . . . . . . Robot Hacks Applied . | . . . . . . . . . . . . . . . . Relay Couplers Released . | . . . . . . . . . . . . . . . . Fabnet Peak Effective % 4 | . . . . . . . . . . 3 4 1 1 . . Robots Rewired 2 | . . . . . 2 . . . . . . . . . . Allies Hacked . | . . . . . . . . . . . . . . . . Hacks Repelled . | . . . . . . . . . . . . . . . . Allies | -11 -10 -9 -8 -7 -7 -7 -7 -6 -6 -5 -4 -3 -3 -2 -1 -------- Run | Yrd Mat Mat Mat Fac Low Low Dat Pro Fac Fac Fac Res DSF Res Acc Total Allies 9 | . . 1 . . 2 . . . 2 3 1 . . . . Largest Group 3 | . . 1 . . 2 1 . . 1 3 1 . . . . Highest-Rated Group 93 | . . 10 . . 56 31 . . 26 93 26 . . . . Highest-Rated Ally 31 | . . 10 . . 31 31 . . 26 31 26 . . . . Total Orders 1 | . . . . . . . . . . 1 . . . . . EXPLORE 1 | . . . . . . . . . . 1 . . . . . Ally Attacks 14 | . . . . . 5 9 . . . . . . . . . Total Damage 226 | . . . . . 118 108 . . . . . . . . . Kills . | . . . . . . . . . . . . . . . . Allies Corrupted 1 | . . . . . . 1 . . . . . . . . . Allies Melted . | . . . . . . . . . . . . . . . . Intel | -11 -10 -9 -8 -7 -7 -7 -7 -6 -6 -5 -4 -3 -3 -2 -1 ------- Run | Yrd Mat Mat Mat Fac Low Low Dat Pro Fac Fac Fac Res DSF Res Acc Robot Analysis Total 145 | . . . . . . . 145 . . . . . . . . Derelict Logs Recovered 2 | . . . . . 1 . . 1 . . . . . . . Drone Launches 2 | . . . . . . . . . . 2 . . . . . Drone Recoveries . | . . . . . . . . . . . . . . . . Exploration | -11 -10 -9 -8 -7 -7 -7 -7 -6 -6 -5 -4 -3 -3 -2 -1 ------------- Run | Yrd Mat Mat Mat Fac Low Low Dat Pro Fac Fac Fac Res DSF Res Acc Turns Passed 7702 | 85 109 138 940 985 1322 1114 47 123 610 547 737 257 46 376 266 Spaces Moved 8137 | 63 117 129 642 586 645 812 157 353 1124 1012 1036 412 68 497 484 Core 174 | 19 . . . . . . . . . . . . . . 155 Treads 639 | . . . . . 216 423 . . . . . . . . . Legs . | . . . . . . . . . . . . . . . . Wheels 2060 | 44 117 129 642 586 429 113 . . . . . . . . . Hover . | . . . . . . . . . . . . . . . . Flight 5264 | . . . . . . 276 157 353 1124 1012 1036 412 68 497 329 Fastest Speed 23 | 50 90 86 85 105 105 27 27 27 27 23 34 31 31 32 28 Average Speed 66 | 88 90 86 95 105 179 117 27 27 27 29 51 31 31 32 43 Slowest Speed 320 | 150 90 86 120 105 320 320 27 27 28 34 134 31 34 34 184 Overloaded Moves . | . . . . . . . . . . . . . . . . Propulsion Burnouts . | . . . . . . . . . . . . . . . . Robots Hopped 8 | . . . . . . . . . 5 1 . . . 2 . Cave-ins Triggered . | . . . . . . . . . . . . . . . . Exploration Rate (%) 35 | 4 26 19 43 16 63 79 78 39 23 28 24 4 88 19 17 Regions Visited 15 Branch Regions 4 Pre-discovered Areas 31 | . . . . . . . 31 . . . . . . . . Known Exits Taken 10 | . . . . 1 1 1 1 1 1 1 1 1 . 1 . Unknown Exits Taken 4 | 1 1 1 1 . . . . . . . . . . . . Scrap Searched 2 | . . . . . 2 . . . . . . . . . . Spaces Dug 123 | . . . 9 6 . 2 . 1 23 33 20 10 . 17 2 Terrain Destroyed 264 | . . . 38 6 52 2 . 1 23 33 20 10 . 17 62 Melee 114 | . . . . 6 . 2 . 1 23 33 20 10 . 17 2 Projectile 5 | . . . 5 . . . . . . . . . . . . AOE 145 | . . . 33 . 52 . . . . . . . . . 60 Terrain Rammed . | . . . . . . . . . . . . . . . . Walls Destroyed . | . . . . . . . . . . . . . . . . Machines Disabled . | . . . . . . . . . . . . . . . . Actions | -11 -10 -9 -8 -7 -7 -7 -7 -6 -6 -5 -4 -3 -3 -2 -1 --------- Run | Yrd Mat Mat Mat Fac Low Low Dat Pro Fac Fac Fac Res DSF Res Acc Total 9922 | 80 120 147 885 893 736 930 159 376 1385 1213 1198 520 92 670 518 Wait 981 | 2 2 10 101 164 22 68 . 15 191 126 63 84 . 129 4 Move 8108 | 62 116 128 641 585 644 811 156 352 1115 1009 1035 411 67 492 484 Hop 6 | . . . . . . . . . 3 1 . . . 2 . Pick Up 87 | 4 2 1 29 10 2 6 . . 12 8 6 3 . 2 2 Fast Attach 67 | 7 . . 14 7 4 10 . 2 4 4 7 . . 6 2 Attach 30 | . . 2 1 1 . 4 . 1 2 4 2 3 . 7 3 Detach 23 | . . . 1 3 . 2 . 2 2 2 3 1 2 4 1 Swap 96 | 1 . 1 16 17 15 3 . 2 9 6 15 3 2 4 2 Drop 102 | . . 1 27 17 2 2 1 . 17 16 12 3 2 2 . Fire 160 | 4 . 4 55 30 42 21 . 1 . . . . . . 3 Melee 146 | . . . . 6 . 2 1 1 30 37 25 12 . 22 10 Ram 4 | . . . . . . . . . . . . . . . 4 Kick . | . . . . . . . . . . . . . . . . Crush . | . . . . . . . . . . . . . . . . Escape Stasis 19 | . . . . . . . . . . . . . 19 . . Rewire 5 | . . . . . 5 . . . . . . . . . . Trap 88 | . . . . 53 . 1 1 . . . 30 . . . 3 Miscellaneous . | . . . . . . . . . . . . . . . . Route ------- -11/Scrapyard -10/Materials -9/Materials -8/Materials -7/Factory -7/Lower Caves -7/Lower Caves -7/Data Miner -6/Proximity Caves -6/Factory (discovered 2 exits: *Fac / *Low) -5/Factory (discovered 6 exits: *Fac x4 / *Upp x2) -4/Factory (discovered 8 exits: *Res x4 / Upp x2 / Ext x2) -3/Research -3/DSF -2/Research (discovered 3 exits: *Acc x3) -1/Access History --------- Turn | Location | Event 8 | -11/Scrapyard | Discovered new exit (range 15) 86 | -11/Scrapyard | Entered Materials 173 | -10/Materials | Discovered new exit (range 3) 195 | -10/Materials | Entered another Materials area 195 | -9/Materials | Evolved 2 slots: Propulsion x1, Utility x1 315 | -9/Materials | Build established: Mutant 326 | -9/Materials | Discovered new exit (range 9) 333 | -9/Materials | Entered another Materials area 333 | -8/Materials | Evolved 2 slots: Propulsion x1, Utility x1 716 | -8/Materials | Build established: Scavenger-Mutant 1011 | -8/Materials | Repaired Trap Scanner 1133 | -8/Materials | Lost 3 parts (2n1w) 1242 | -8/Materials | Discovered new exit (range 14) 1273 | -8/Materials | Entered Factory 1273 | -7/Factory | Evolved 2 slots: Propulsion x1, Utility x1 1612 | -7/Factory | Repaired Corrupted Imp. Sensor Array 1662 | -7/Factory | Repaired Proton Missile Launcher 2197 | -7/Factory | Discovered new exit (range 8) 2234 | -7/Factory | Identified exit to Lower Caves 2258 | -7/Factory | Entered Lower Caves 2674 | -7/Lower Caves | Encountered a Warlord checkpoint 2895 | -7/Lower Caves | Learned Factory emergency access door positions 2947 | -7/Lower Caves | Attacked by a faux Warlord 3370 | -7/Lower Caves | Build established: Scavenger-Skirmisher 3502 | -7/Lower Caves | Discovered new exit (range 4) 3577 | -7/Lower Caves | Identified exit to Lower Caves 3580 | -7/Lower Caves | Entered another Lower Caves area 3580 | -7/Lower Caves | Accompanied by 1 ally 4484 | -7/Lower Caves | Spotted B-75 Beast 4494 | -7/Lower Caves | Attracted the attention of an 0b10 checkpoint 4581 | -7/Lower Caves | Discovered new exit (range 5) 4583 | -7/Lower Caves | Identified exit to Data Miner 4591 | -7/Lower Caves | Lost 9 parts (5n3u1w) 4694 | -7/Lower Caves | Entered Data Miner 4694 | -7/Data Miner | Discovered new exit (range 6) 4696 | -7/Data Miner | Identified exit to Proximity Caves 4700 | -7/Data Miner | Met Data Miner 4708 | -7/Data Miner | Learned location of Section 7 (-2) 4708 | -7/Data Miner | Acquired the access code to Warlord's prototype stash 4710 | -7/Data Miner | Received God Mode back door access code from Data Miner 4733 | -7/Data Miner | Interfaced with the Data Conduit 4741 | -7/Data Miner | Entered Proximity Caves 4742 | -6/Proximity Caves | Learned 4 Factory zone layouts 4841 | -6/Proximity Caves | Discovered new exit (range 15) 4849 | -6/Proximity Caves | Identified exit to Factory 4864 | -6/Proximity Caves | Entered Factory 4864 | -6/Factory | Evolved 2 slots: Utility x2 4867 | -6/Factory | Loaded intel: 253 machine locations 5018 | -6/Factory | Fabricated O-24 Administrator (x1) 5136 | -6/Factory | Fabricated Cld. Cesium-ion Thruster? 5289 | -6/Factory | Build established: Hacker-Sprinter 5411 | -6/Factory | Discovered new exit (range 14) 5414 | -6/Factory | Identified exit to Factory 5433 | -6/Factory | Discovered new exit (range 13) 5436 | -6/Factory | Identified exit to Lower Caves 5474 | -6/Factory | Entered another Factory area 5474 | -5/Factory | Evolved 2 slots: Propulsion x1, Utility x1 5475 | -5/Factory | Loaded intel: 281 machine locations 5869 | -5/Factory | Identified exit to Upper Caves 5926 | -5/Factory | Allied Derelicts emerged from ambush trap array 5963 | -5/Factory | Identified exit to Factory 6010 | -5/Factory | Intercept squad dispatched 6021 | -5/Factory | Entered another Factory area 6021 | -4/Factory | Evolved 2 slots: Power x1, Propulsion x1 6022 | -4/Factory | Loaded intel: 260 machine locations 6081 | -4/Factory | Identified exit to Upper Caves 6081 | -4/Factory | Identified exit to Extension 6082 | -4/Factory | Identified exit to Research 6281 | -4/Factory | Build established: Hacker-Mutant 6739 | -4/Factory | Intercept squad dispatched 6758 | -4/Factory | Entered Research 6758 | -3/Research | Evolved 2 slots: Propulsion x1, Utility x1 6759 | -3/Research | Loaded intel: 107 machine locations 6809 | -3/Research | Identified exit to DSF 7015 | -3/Research | Entered DSF 7016 | -3/DSF | Loaded intel: 2 machine locations 7056 | -3/DSF | Discovered new exit (range 14) 7060 | -3/DSF | Identified exit to Research 7061 | -3/DSF | Entered Research 7061 | -2/Research | Evolved 2 slots: Utility x2 7062 | -2/Research | Loaded intel: 106 machine locations 7120 | -2/Research | Build established: Hacker-Sprinter 7271 | -2/Research | Repaired Nuclear Pulse Array 7323 | -2/Research | Repaired Adv. Sensor Array 7382 | -2/Research | Identified exit to Access 7400 | -2/Research | Hacking Suite fried by hacking feedback 7437 | -2/Research | Entered Access 7437 | -1/Access | Evolved 2 slots: Propulsion x1, Utility x1 7438 | -1/Access | Loaded intel: 92 machine locations 7562 | -1/Access | Intercept squad dispatched 7574 | -1/Access | Spotted Tracker 7574 | -1/Access | Spotted Tracker 7588 | -1/Access | Spotted Combat Programmer 7588 | -1/Access | Spotted Combat Programmer 7589 | -1/Access | Destroyed Tracker 7592 | -1/Access | Released all parts (16) 7617 | -1/Access | Core integrity fell below 50% 7620 | -1/Access | Lost 5 parts (2p3u) 7687 | -1/Access | Core integrity fell below 20% 7703 | -1/Access | Destroyed by H-88 Terminator with KE Penetrator Last Messages --------------- 07638_ Installed Hellfire Trap. 07640_ Slammed into K-01 Serf. 07640_ Destabilizing: System interference. 07640_ Adv. Trap Extractor temporarily disabled. 07651_ Tracker triggered Hellfire Trap. 07651_ An explosion rips through the floor. 07652_ Penetrated by EMDS Slug. 07652_ K-01 Serf destroyed. 07654_ Penetrated by EMDS Slug. 07657_ Acquired 27 matter. 07681_ Penetrated by EMDS Slug. 07685_ EMDS Slug penetrates Wall. 07686_ Penetrated by EMDS Slug. 07686_ Adv. Trap Extractor destroyed. 07692_ Penetrated by EMDS Slug. 07697_ Penetrated by Slug. 07702_ Slammed into R-10 Processor. 07703_ Slammed into H-88 Terminator. 07703_ Penetrated by Slug. 07703_ P-80 Master resets K-01 Serf, system corruption cleaned. Map ----- +----------------------------------------------------+ | ??????????????????"""????????????????????????????? | | ???????????????????"?????????????????????????????? | | ?????????????????????????????????????????????????? | | ?????????????????????????????????????????????????? | | ?????????????????????????????????????????????????? | | ?????????????????????????????????????????????????? | | ?????????????????????????????????????????????????? | | ??????????????????T"?????????????????????????????? | | ???????????????????"?????????????????????????????? | | ?????????????????????????????H???????????????????? | | ????????????????????????????? ??????????????????? | | ????????????????????????????? ??????????????????? | | ????????????????????????????? ??????????????????? | | ????????????????????????????# ??????????????????? | | ????????????????????????????# #?????????????????? | | ???????????????????""???????# #?????????????????? | | ??????????????????"""???????# #?????????????????? | | ??????????????????""????????# #?????????????????? | | ??????????????????""F"??????# #?????????????????? | | ??????????????????""""??????# #?????????????????? | | ???????????????????"""??????# #?????????????????? | | ????????????????????????????# #?????????????????? | | ????????????????????????????# #?????????????????? | | ?????????????#######+######## ###+####??????????? | | ??????????w k p h k Rk #??????????? | | ?????????? k p u@h s #??????????? | | ?????????????""#####+########+###### #??????????? | | ?????????????""????????????] ???# #??????????? | | ?????????????""??????????# ?# #??????????? | | ??????????????T??????????# # +??????????? | | ?????????????""??????????# # #??????????? | | ?????????????""??????????# # #??????????? | | ?????????????""??????????# # #??????????? | | ????""""""""""""?????????# !! # #??????????? | | ?????????????????????????# != # #??????????? | | ?????????????????????????########### #??""?""???? | | ???????""""""????????????# + +??""R""???? | | ???????"????"????????????# # #???""""???? | | ???????"??"?"????????????# " ??# #??????????? | | ???????"?""?"????????????# """???# #??????????? | | ???????"????"????????????#? """????# #??????????? | | ???????""""""????????????????"?????# #??????????? | | ???????????????????????????????????# #??????????? | | ?????""""""""""????????????????????# #??????????? | | ?????""""""""""????????????????????# ############ | | ?????""""""""""????????????????????# | | ?????""""""""""????????????????????# | | ???????????????????????????????????######+######## | | ????????????????????????????????????????? ?????# | | ????????????????????????????????????????? ???# | +----------------------------------------------------+ Best States ------------- Heat Dissipation 52 Energy Generation 45 Energy Capacity 290 Matter Stores 300 Matter Capacity 300 Sight Range 22 Robot Scan Range 16 Terrain Scan Range 16 Terrain Scan Density 10 ECM Strength 2 Jamming Range 14 Cloak Strength 2 Armor Coverage 450 Propulsion Shielding 66 Evasion (%) 73 Melee Accuracy 8 Target Analysis 5 Recoil Reduction 3 Offensive Hacking 40 Trap Extractor Capacity 8 Item Schematics ----------------- Combat Drone Bay | -7/Data Miner | Free Lgt. Regenerative Plating | -7/Data Miner | Free Cld. Cesium-ion Thruster | -7/Data Miner | Free Exp. Targeting Computer | -7/Data Miner | Free Imp. Heavy Machine Gun | -7/Data Miner | Free Hvy. Treads | -7/Data Miner | Free Imp. Coolant Injector | -7/Data Miner | Free Hvy. Gauss Cannon | -7/Data Miner | Free Adv. Hacking Suite | -6/Factory | Hacked Impulse Thruster Array | -5/Factory | Hacked Lgt. Quantum Reactor | -4/Factory | Hacked Nuclear Pulse Array | -4/Factory | Hacked Robot Schematics ------------------ G-47 Trooper | -7/Data Miner | Free L-41 Fighter | -7/Data Miner | Free M-28 Smith | -7/Data Miner | Free G-50 Soldier | -7/Data Miner | Free Y-54 Guardian | -7/Data Miner | Free A-15 Conveyor | -7/Data Miner | Free Fabricated ------------ O-24 Administrator | x1 | -6/Factory | Preloaded Cld. Cesium-ion Thruster | x1 | -6/Factory Alien Tech Used ----------------- None Achievements -------------- Unlimited Data Challenges ------------ None Game ------ Seed AntimatterAdvancedExtractor Manual? 0 Play Time 02:27:14 Cumulative 137.1 hours Start 2025.03.24 @ 10:12:40 End 2025.03.24 @ 14:28:08 Sessions 3 Manual Loads 0 Difficulty Rogue Special Mode None Game No. 115 Rogue 115 Adventurer 0 Explorer 0 Win Type - Total 5 Types 5/0/0/0/0/0/0/0/0 Lore% 54 Gallery% 60 Achievement% 52 Wizard Run 0 Options --------- Layout 0 ASCII 0 Keyboard 1 Movement Numpad Keybinds 0 Fullscreen 2 Font 36/Smallcaps Map View 76x50 Zoom Use 0% Tactical HUD 1 Map Filters NONE Filters NONE Steam 1 RUN: c668dfa6-5088-4cd7-86a7-0694fcfd11d7